[Event "*** Titled Tuesday 3|2 Blitz"]
[Site "Chess.com"]
[Date "2016.09.06"]
[Round "5"]
[White "Haykos"]
[Black "petrpalachev"]
[Result "1/2-1/2"]
[WhiteElo "2250"]
[BlackElo "2411"]
[TimeControl "180+2"]
[EndTime "12:05:17 PDT"]
[Termination "Game drawn - insufficient material"]

1. e4 {[%clk 0:02:58.8]} 1... e6 {[%clk 0:03:00.6]} 2. d4 {[%clk 0:02:58.3]}
2... d5 {[%clk 0:03:02.2]} 3. Nd2 {[%clk 0:02:59.1]} 3... Nf6 {[%clk 0:03:02.3]}
4. Bd3 {[%clk 0:02:57.2]} 4... c5 {[%clk 0:03:00.8]} 5. dxc5 {[%clk 0:02:56.2]}
5... dxe4 {[%clk 0:03:01]} 6. Nxe4 {[%clk 0:02:53.2]} 6... Nxe4 {[%clk
0:03:02.9]} 7. Bxe4 {[%clk 0:02:55.1]} 7... Qxd1+ {[%clk 0:03:04.3]} 8. Kxd1
{[%clk 0:02:57]} 8... Bxc5 {[%clk 0:03:01.1]} 9. f4 {[%clk 0:02:57.8]} 9... Ke7
{[%clk 0:02:59.9]} 10. Nf3 {[%clk 0:02:57.1]} 10... Nd7 {[%clk 0:03:00.8]} 11.
Ke2 {[%clk 0:02:57]} 11... Nf6 {[%clk 0:03:02]} 12. Bd3 {[%clk 0:02:58.2]} 12...
b6 {[%clk 0:03:02.9]} 13. a3 {[%clk 0:02:44.5]} 13... a5 {[%clk 0:03:03.6]} 14.
Rd1 {[%clk 0:02:37.9]} 14... Bb7 {[%clk 0:03:04.5]} 15. g3 {[%clk 0:02:38.7]}
15... Rhd8 {[%clk 0:03:04.4]} 16. Be3 {[%clk 0:02:39.7]} 16... Bxf3+ {[%clk
0:03:00.1]} 17. Kxf3 {[%clk 0:02:38]} 17... Bxe3 {[%clk 0:03:02]} 18. Kxe3
{[%clk 0:02:39.9]} 18... Ng4+ {[%clk 0:03:03.6]} 19. Kd2 {[%clk 0:02:29.8]}
19... Nxh2 {[%clk 0:03:04.1]} 20. Rh1 {[%clk 0:02:30.5]} 20... Ng4 {[%clk
0:03:00.6]} 21. Rxh7 {[%clk 0:02:31.1]} 21... Kf6 {[%clk 0:02:56.5]} 22. Re1
{[%clk 0:02:29.8]} 22... Nf2 {[%clk 0:02:54.8]} 23. Rh5 {[%clk 0:02:24.7]} 23...
Nxd3 {[%clk 0:02:54.8]} 24. cxd3 {[%clk 0:02:25.3]} 24... Rd6 {[%clk 0:02:56.5]}
25. Rb5 {[%clk 0:02:26.2]} 25... Rad8 {[%clk 0:02:58.4]} 26. Re3 {[%clk
0:02:25.7]} 26... Rc6 {[%clk 0:02:59.2]} 27. Rb3 {[%clk 0:02:10.5]} 27... Rd5
{[%clk 0:02:54.1]} 28. Rc3 {[%clk 0:02:11.1]} 28... Rcd6 {[%clk 0:02:45.7]} 29.
Ke2 {[%clk 0:01:49.8]} 29... g5 {[%clk 0:02:46.2]} 30. Rc4 {[%clk 0:01:30.7]}
30... Rd4 {[%clk 0:02:35.7]} 31. Rxd4 {[%clk 0:01:29.6]} 31... Rxd4 {[%clk
0:02:37.6]} 32. fxg5+ {[%clk 0:01:30.8]} 32... Kxg5 {[%clk 0:02:38.3]} 33. Rf3
{[%clk 0:01:14.7]} 33... f5 {[%clk 0:02:31.3]} 34. Re3 {[%clk 0:01:14]} 34...
Kf6 {[%clk 0:02:32.2]} 35. Kd2 {[%clk 0:01:06]} 35... e5 {[%clk 0:02:31.8]} 36.
Kc3 {[%clk 0:01:06.3]} 36... b5 {[%clk 0:02:32.4]} 37. b4 {[%clk 0:01:06.2]}
37... axb4+ {[%clk 0:02:31.6]} 38. axb4 {[%clk 0:01:08.1]} 38... Rg4 {[%clk
0:02:30.1]} 39. Rf3 {[%clk 0:01:07.8]} 39... Ke6 {[%clk 0:02:31.4]} 40. Re3
{[%clk 0:01:07.7]} 40... Kd5 {[%clk 0:02:31.6]} 41. Rf3 {[%clk 0:01:09]} 41...
f4 {[%clk 0:02:29.9]} 42. gxf4 {[%clk 0:01:09.7]} 42... exf4 {[%clk 0:02:31.8]}
43. Rf1 {[%clk 0:01:08.2]} 43... Ke5 {[%clk 0:02:29.3]} 44. Re1+ {[%clk
0:00:54.6]} 44... Kf5 {[%clk 0:02:30.1]} 45. Kd4 {[%clk 0:00:55.8]} 45... Rg5
{[%clk 0:01:45.9]} 46. Rf1 {[%clk 0:00:49.1]} 46... Rh5 {[%clk 0:01:35.4]} 47.
Rf2 {[%clk 0:00:36.9]} 47... Rh8 {[%clk 0:00:57.7]} 48. Kc5 {[%clk 0:00:33.6]}
48... Rb8 {[%clk 0:00:58.3]} 49. d4 {[%clk 0:00:33.3]} 49... Ke4 {[%clk
0:00:58.8]} 50. d5 {[%clk 0:00:34.2]} 50... Ke3 {[%clk 0:00:57.1]} 51. Rf1
{[%clk 0:00:32.7]} 51... f3 {[%clk 0:00:58.4]} 52. d6 {[%clk 0:00:34]} 52... f2
{[%clk 0:00:59.8]} 53. d7 {[%clk 0:00:31.2]} 53... Ke2 {[%clk 0:00:47.8]} 54.
Rh1 {[%clk 0:00:31.4]} 54... f1=Q {[%clk 0:00:46]} 55. Rxf1 {[%clk 0:00:32.6]}
55... Kxf1 {[%clk 0:00:47.9]} 56. d8=Q {[%clk 0:00:27.3]} 56... Rxd8 {[%clk
0:00:46.7]} 57. Kxb5 {[%clk 0:00:29.2]} 57... Ke2 {[%clk 0:00:14.3]} 58. Kc6
{[%clk 0:00:27.6]} 58... Rc8+ {[%clk 0:00:14.8]} 59. Kb7 {[%clk 0:00:26.5]}
59... Rh8 {[%clk 0:00:13.1]} 60. b5 {[%clk 0:00:27.2]} 60... Kd3 {[%clk
0:00:14]} 61. b6 {[%clk 0:00:28.2]} 61... Kc4 {[%clk 0:00:12.2]} 62. Ka7 {[%clk
0:00:28.1]} 62... Kb5 {[%clk 0:00:04.4]} 63. b7 {[%clk 0:00:29.2]} 63... Rh7
{[%clk 0:00:05.5]} 64. Ka8 {[%clk 0:00:29.4]} 64... Rxb7 {[%clk 0:00:04.1]} 65.
Kxb7 {[%clk 0:00:29.9]} 1/2-1/2

[Event "*** Titled Tuesday 3|2 Blitz"]
[Site "Chess.com"]
[Date "2016.09.06"]
[Round "5"]
[White "jb2mix"]
[Black "macko06"]
[Result "1-0"]
[WhiteElo "2410"]
[BlackElo "2178"]
[TimeControl "180+2"]
[EndTime "12:05:17 PDT"]
[Termination "jb2mix won on time"]

1. e4 {[%clk 0:03:02]} 1... e6 {[%clk 0:03:01.1]} 2. d4 {[%clk 0:03:02.6]} 2...
d5 {[%clk 0:03:02.6]} 3. Nd2 {[%clk 0:03:03.6]} 3... c5 {[%clk 0:03:01.3]} 4.
exd5 {[%clk 0:03:01.1]} 4... Qxd5 {[%clk 0:03:03.2]} 5. Ngf3 {[%clk 0:03:02.3]}
5... cxd4 {[%clk 0:03:03]} 6. Bc4 {[%clk 0:03:03]} 6... Qd6 {[%clk 0:03:04.4]}
7. O-O {[%clk 0:02:59.4]} 7... Nc6 {[%clk 0:03:05.8]} 8. Nb3 {[%clk 0:02:59.9]}
8... Nf6 {[%clk 0:03:06.1]} 9. Nbxd4 {[%clk 0:02:59.7]} 9... Nxd4 {[%clk
0:03:07.1]} 10. Nxd4 {[%clk 0:03:01.6]} 10... a6 {[%clk 0:03:07.8]} 11. Re1
{[%clk 0:03:02.6]} 11... Qc7 {[%clk 0:03:04.6]} 12. Qe2 {[%clk 0:03:02.2]} 12...
Bd7 {[%clk 0:03:02.4]} 13. Bg5 {[%clk 0:03:00.4]} 13... O-O-O {[%clk 0:03:02.3]}
14. Rad1 {[%clk 0:02:53.9]} 14... Bc5 {[%clk 0:02:52]} 15. Rd3 {[%clk
0:02:15.8]} 15... Bxd4 {[%clk 0:02:48.6]} 16. Rxd4 {[%clk 0:02:16.5]} 16... Bc6
{[%clk 0:02:49.2]} 17. Rf4 {[%clk 0:01:55.4]} 17... h6 {[%clk 0:02:43.3]} 18.
Bxf6 {[%clk 0:01:55.3]} 18... Qxf4 {[%clk 0:02:43.4]} 19. Bxd8 {[%clk
0:01:53.7]} 19... Rxd8 {[%clk 0:02:42.9]} 20. Bd3 {[%clk 0:01:50.2]} 20... Qg5
{[%clk 0:02:38.2]} 21. f3 {[%clk 0:01:44.2]} 21... Qc5+ {[%clk 0:02:38.7]} 22.
Qf2 {[%clk 0:01:42.7]} 22... Qxf2+ {[%clk 0:02:37.1]} 23. Kxf2 {[%clk
0:01:44.6]} 23... Kc7 {[%clk 0:02:37.4]} 24. h4 {[%clk 0:01:41.9]} 24... a5
{[%clk 0:02:33]} 25. h5 {[%clk 0:01:41]} 25... b6 {[%clk 0:02:34.2]} 26. g4
{[%clk 0:01:32.7]} 26... Kd6 {[%clk 0:02:33.6]} 27. f4 {[%clk 0:01:32.6]} 27...
Ke7 {[%clk 0:02:34.5]} 28. g5 {[%clk 0:01:25.7]} 28... Rd5 {[%clk 0:02:27.2]}
29. Rg1 {[%clk 0:01:21.4]} 29... Kf8 {[%clk 0:02:16.5]} 30. Ke3 {[%clk
0:01:21.2]} 30... Rc5 {[%clk 0:02:12.6]} 31. c4 {[%clk 0:01:18]} 31... a4 {[%clk
0:02:04.2]} 32. Kd4 {[%clk 0:01:16.2]} 32... Bf3 {[%clk 0:01:54.4]} 33. b4
{[%clk 0:01:07]} 33... axb3 {[%clk 0:01:54.8]} 34. axb3 {[%clk 0:01:07.7]} 34...
hxg5 {[%clk 0:01:45.6]} 35. fxg5 {[%clk 0:01:06.9]} 35... Bxh5 {[%clk
0:01:42.9]} 36. b4 {[%clk 0:01:07.6]} 36... Rc8 {[%clk 0:01:39.3]} 37. Rh1
{[%clk 0:01:02.6]} 37... g6 {[%clk 0:01:40.1]} 38. Be4 {[%clk 0:00:53.9]} 38...
Ke7 {[%clk 0:01:37.6]} 39. Ra1 {[%clk 0:00:51.3]} 39... Be2 {[%clk 0:01:26.8]}
40. c5 {[%clk 0:00:49.3]} 40... bxc5+ {[%clk 0:01:27.7]} 41. bxc5 {[%clk
0:00:50.9]} 41... Rc7 {[%clk 0:01:18]} 42. Ra8 {[%clk 0:00:33]} 42... Bb5 {[%clk
0:01:13.3]} 43. Rh8 {[%clk 0:00:22.5]} 43... e5+ {[%clk 0:01:06]} 44. Kxe5
{[%clk 0:00:04.6]} 44... Rxc5+ {[%clk 0:01:07]} 45. Kf4 {[%clk 0:00:06.3]} 45...
Rc4 {[%clk 0:01:03.5]} 46. Ke5 {[%clk 0:00:06.9]} 46... Bd7 {[%clk 0:00:54.2]}
47. Rb8 {[%clk 0:00:05.2]} 47... Rc1 {[%clk 0:00:48.3]} 48. Rb7 {[%clk
0:00:05.3]} 48... Re1 {[%clk 0:00:44.5]} 49. Ra7 {[%clk 0:00:04.4]} 49... Kd8
{[%clk 0:00:38.4]} 50. Ra8+ {[%clk 0:00:02.5]} 50... Ke7 {[%clk 0:00:34.9]} 51.
Ra7 {[%clk 0:00:04.4]} 51... Kd8 {[%clk 0:00:33.2]} 52. Kf4 {[%clk 0:00:05.4]}
52... Rg1 {[%clk 0:00:26.3]} 53. Bd5 {[%clk 0:00:04.9]} 53... Rg4+ {[%clk
0:00:25]} 54. Ke5 {[%clk 0:00:05.9]} 54... Rxg5+ {[%clk 0:00:09.3]} 55. Kd6
{[%clk 0:00:07.1]} 55... Rxd5+ {[%clk 0:00:07.3]} 56. Kxd5 {[%clk 0:00:09]}
56... f5 {[%clk 0:00:04.6]} 57. Kd6 {[%clk 0:00:10.9]} 1-0

[Event "*** Titled Tuesday 3|2 Blitz"]
[Site "Chess.com"]
[Date "2016.09.06"]
[Round "5"]
[White "igorkovalenko"]
[Black "FairChess_on_YouTube"]
[Result "1/2-1/2"]
[WhiteElo "2608"]
[BlackElo "2689"]
[TimeControl "180+2"]
[EndTime "12:06:00 PDT"]
[Termination "Game drawn - insufficient material"]

1. e4 {[%clk 0:03:01.9]} 1... e5 {[%clk 0:03:00]} 2. Bc4 {[%clk 0:03:02.8]} 2...
Nc6 {[%clk 0:02:58.9]} 3. Nf3 {[%clk 0:03:00.6]} 3... Bc5 {[%clk 0:02:58.6]} 4.
d3 {[%clk 0:03:01.1]} 4... Nf6 {[%clk 0:02:59.2]} 5. c3 {[%clk 0:03:01.4]} 5...
O-O {[%clk 0:03:00.1]} 6. a4 {[%clk 0:03:02.9]} 6... a6 {[%clk 0:02:55.4]} 7.
O-O {[%clk 0:03:03.8]} 7... d6 {[%clk 0:02:55.6]} 8. Na3 {[%clk 0:03:00.1]} 8...
Ba7 {[%clk 0:02:51.2]} 9. Nc2 {[%clk 0:02:57]} 9... Be6 {[%clk 0:02:52]} 10. b3
{[%clk 0:02:54.7]} 10... d5 {[%clk 0:02:49.8]} 11. exd5 {[%clk 0:02:55.1]} 11...
Bxd5 {[%clk 0:02:51.5]} 12. Bg5 {[%clk 0:02:54.8]} 12... Bxc4 {[%clk 0:02:47.5]}
13. dxc4 {[%clk 0:02:56]} 13... Qxd1 {[%clk 0:02:46.1]} 14. Raxd1 {[%clk
0:02:56.4]} 14... Ne4 {[%clk 0:02:47.2]} 15. Rd7 {[%clk 0:02:45.7]} 15... f6
{[%clk 0:02:43.6]} 16. Be3 {[%clk 0:02:44.1]} 16... Rf7 {[%clk 0:02:43.8]} 17.
Rfd1 {[%clk 0:02:41.9]} 17... Bxe3 {[%clk 0:02:22.5]} 18. Nxe3 {[%clk
0:02:42.6]} 18... Nc5 {[%clk 0:02:21.8]} 19. Rxf7 {[%clk 0:02:34.5]} 19... Kxf7
{[%clk 0:02:23.7]} 20. b4 {[%clk 0:02:33.8]} 20... Ne6 {[%clk 0:02:25.3]} 21. a5
{[%clk 0:02:29.5]} 21... Rd8 {[%clk 0:02:25.4]} 22. Nd5 {[%clk 0:02:24.1]} 22...
Ne7 {[%clk 0:02:23.9]} 23. Rd2 {[%clk 0:02:22.6]} 23... c6 {[%clk 0:02:19.6]}
24. Ne3 {[%clk 0:02:11.9]} 24... Rxd2 {[%clk 0:02:18]} 25. Nxd2 {[%clk
0:02:13.8]} 25... f5 {[%clk 0:02:17.9]} 26. Kf1 {[%clk 0:02:04.7]} 26... c5
{[%clk 0:02:07.1]} 27. Nb3 {[%clk 0:02:00.7]} 27... g6 {[%clk 0:02:03.4]} 28. g3
{[%clk 0:01:54.5]} 28... Nc6 {[%clk 0:01:59.7]} 29. Nd5 {[%clk 0:01:53.8]} 29...
e4 {[%clk 0:01:58.9]} 30. Ke2 {[%clk 0:01:52.9]} 30... Ne5 {[%clk 0:01:58.6]}
31. bxc5 {[%clk 0:01:47.8]} 31... Nxc4 {[%clk 0:01:57.4]} 32. c6 {[%clk
0:01:49.3]} 32... bxc6 {[%clk 0:01:54.9]} 33. Nb4 {[%clk 0:01:50.6]} 33... Nc7
{[%clk 0:01:52.7]} 34. Nxc6 {[%clk 0:01:51.4]} 34... Ke6 {[%clk 0:01:45]} 35.
Nb4 {[%clk 0:01:44.2]} 35... Kd6 {[%clk 0:01:46.1]} 36. f3 {[%clk 0:01:43.9]}
36... exf3+ {[%clk 0:01:45.1]} 37. Kxf3 {[%clk 0:01:45.8]} 37... g5 {[%clk
0:01:46.7]} 38. Nd4 {[%clk 0:01:44.5]} 38... Nxa5 {[%clk 0:01:38.1]} 39. Nxf5+
{[%clk 0:01:45.4]} 39... Ke5 {[%clk 0:01:35.6]} 40. Kg4 {[%clk 0:01:40.8]} 40...
Nc4 {[%clk 0:01:35.5]} 41. Kxg5 {[%clk 0:01:27.8]} 41... Ne6+ {[%clk 0:01:27.6]}
42. Kg4 {[%clk 0:01:28.9]} 42... a5 {[%clk 0:01:17.3]} 43. Nd3+ {[%clk
0:01:26.2]} 43... Ke4 {[%clk 0:01:17.4]} 44. Nf2+ {[%clk 0:01:09.9]} 44... Ke5
{[%clk 0:01:17.5]} 45. Nd3+ {[%clk 0:01:06.6]} 45... Ke4 {[%clk 0:01:18.5]} 46.
Nf2+ {[%clk 0:01:07.9]} 46... Kd5 {[%clk 0:01:20.1]} 47. Ne7+ {[%clk 0:00:57.5]}
47... Kd6 {[%clk 0:01:19.2]} 48. Nf5+ {[%clk 0:00:56.8]} 48... Kc6 {[%clk
0:01:19.3]} 49. Ne7+ {[%clk 0:00:22.9]} 49... Kb5 {[%clk 0:01:20.5]} 50. Nd3
{[%clk 0:00:22]} 50... Nc5 {[%clk 0:01:14.1]} 51. Nc1 {[%clk 0:00:23.3]} 51...
a4 {[%clk 0:01:09.1]} 52. Nf5 {[%clk 0:00:15.8]} 52... a3 {[%clk 0:01:03.4]} 53.
Nd4+ {[%clk 0:00:16]} 53... Ka4 {[%clk 0:01:03.7]} 54. Nc2 {[%clk 0:00:14.8]}
54... Ne4 {[%clk 0:00:52.9]} 55. Nxa3 {[%clk 0:00:15.6]} 55... Kxa3 {[%clk
0:00:52.8]} 56. Ne2 {[%clk 0:00:16.7]} 56... Kb3 {[%clk 0:00:51]} 57. Kh5 {[%clk
0:00:17.1]} 57... Ne5 {[%clk 0:00:41.3]} 58. Kh6 {[%clk 0:00:17.8]} 58... Nf6
{[%clk 0:00:36.7]} 59. h3 {[%clk 0:00:18]} 59... Kc2 {[%clk 0:00:34]} 60. Kg7
{[%clk 0:00:19]} 60... Ned7 {[%clk 0:00:35.2]} 61. g4 {[%clk 0:00:19.6]} 61...
Kd3 {[%clk 0:00:35.5]} 62. g5 {[%clk 0:00:19.9]} 62... Ne8+ {[%clk 0:00:30.5]}
63. Kf7 {[%clk 0:00:11.4]} 63... Nc7 {[%clk 0:00:27.7]} 64. Ng3 {[%clk
0:00:11.7]} 64... Ke3 {[%clk 0:00:28.6]} 65. h4 {[%clk 0:00:11.7]} 65... Kf4
{[%clk 0:00:15.5]} 66. Ne2+ {[%clk 0:00:11.3]} 66... Kg4 {[%clk 0:00:16.8]} 67.
Kg7 {[%clk 0:00:12.5]} 67... Kxh4 {[%clk 0:00:17.3]} 68. Kxh7 {[%clk 0:00:14]}
68... Kxg5 {[%clk 0:00:18.9]} 69. Kg7 {[%clk 0:00:14.7]} 69... Ne5 {[%clk
0:00:19.6]} 70. c4 {[%clk 0:00:15.2]} 70... Ne6+ {[%clk 0:00:20.2]} 71. Kg8
{[%clk 0:00:15.5]} 71... Kg6 {[%clk 0:00:21.8]} 72. c5 {[%clk 0:00:14.7]} 72...
Nd7 {[%clk 0:00:23.1]} 73. Nf4+ {[%clk 0:00:11.8]} 73... Nxf4 {[%clk 0:00:23.5]}
74. c6 {[%clk 0:00:13]} 74... Nb6 {[%clk 0:00:16.7]} 75. c7 {[%clk 0:00:13.3]}
75... Ne6 {[%clk 0:00:17.8]} 76. c8=Q {[%clk 0:00:13.2]} 76... Nxc8 {[%clk
0:00:19.3]} 77. Kh8 {[%clk 0:00:14.8]} 1/2-1/2

[Event "*** Titled Tuesday 3|2 Blitz"]
[Site "Chess.com"]
[Date "2016.09.06"]
[Round "5"]
[White "joppie2"]
[Black "wonderfultime"]
[Result "0-1"]
[WhiteElo "2509"]
[BlackElo "2664"]
[TimeControl "180+2"]
[EndTime "12:07:02 PDT"]
[Termination "wonderfultime won by resignation"]

1. e4 {[%clk 0:03:02]} 1... c5 {[%clk 0:02:59.9]} 2. Nc3 {[%clk 0:03:03.4]} 2...
Nc6 {[%clk 0:03:00.3]} 3. Bb5 {[%clk 0:03:04.1]} 3... Nd4 {[%clk 0:02:58.8]} 4.
Nf3 {[%clk 0:03:05.2]} 4... Nxb5 {[%clk 0:02:58.8]} 5. Nxb5 {[%clk 0:03:07.1]}
5... d6 {[%clk 0:02:55.1]} 6. d4 {[%clk 0:03:08.1]} 6... cxd4 {[%clk 0:02:55.2]}
7. Qxd4 {[%clk 0:03:09]} 7... Bd7 {[%clk 0:02:29.9]} 8. Nc3 {[%clk 0:03:05.7]}
8... Bc6 {[%clk 0:02:30.9]} 9. Bg5 {[%clk 0:03:05.3]} 9... Nf6 {[%clk
0:02:29.7]} 10. O-O-O {[%clk 0:03:05.5]} 10... h6 {[%clk 0:02:09.3]} 11. Bh4
{[%clk 0:02:49.5]} 11... Qb6 {[%clk 0:01:48]} 12. Qd3 {[%clk 0:02:37.2]} 12...
e6 {[%clk 0:01:43]} 13. Bxf6 {[%clk 0:02:14.5]} 13... gxf6 {[%clk 0:01:42.4]}
14. Nd4 {[%clk 0:02:16.4]} 14... Be7 {[%clk 0:01:40.4]} 15. Rhe1 {[%clk
0:02:16.2]} 15... a6 {[%clk 0:01:27]} 16. f4 {[%clk 0:01:42.1]} 16... Bd7 {[%clk
0:00:44.6]} 17. Nf5 {[%clk 0:01:28.6]} 17... Rc8 {[%clk 0:00:33.5]} 18. Nxe7
{[%clk 0:01:09.3]} 18... Kxe7 {[%clk 0:00:34.1]} 19. e5 {[%clk 0:01:11.2]} 19...
fxe5 {[%clk 0:00:29.3]} 20. fxe5 {[%clk 0:01:13.1]} 20... d5 {[%clk 0:00:30.4]}
21. Qxd5 {[%clk 0:00:59.1]} 21... Bc6 {[%clk 0:00:05.3]} 22. Qd6+ {[%clk
0:00:55.2]} 22... Ke8 {[%clk 0:00:06.7]} 23. Ne4 {[%clk 0:00:55.4]} 23... Bxe4
{[%clk 0:00:07.8]} 24. Qd7+ {[%clk 0:00:51.6]} 24... Kf8 {[%clk 0:00:08.7]} 25.
Qxc8+ {[%clk 0:00:32.5]} 25... Kg7 {[%clk 0:00:10.1]} 26. Qc3 {[%clk 0:00:33.9]}
26... Bg6 {[%clk 0:00:09.5]} 27. Rd6 {[%clk 0:00:34.7]} 27... Qf2 {[%clk
0:00:09.9]} 28. Qd2 {[%clk 0:00:32.2]} 28... Qf5 {[%clk 0:00:09.4]} 29. Rd3
{[%clk 0:00:27.6]} 29... Rc8 {[%clk 0:00:09.9]} 30. Rc3 {[%clk 0:00:29.1]} 30...
Rb8 {[%clk 0:00:11.1]} 31. Rf3 {[%clk 0:00:28.2]} 31... Qh5 {[%clk 0:00:11.5]}
32. h3 {[%clk 0:00:23.6]} 32... Qh4 {[%clk 0:00:09.8]} 33. Ref1 {[%clk
0:00:19.8]} 33... Rc8 {[%clk 0:00:10.2]} 34. Rc3 {[%clk 0:00:21]} 34... Rd8
{[%clk 0:00:10.8]} 35. Qe3 {[%clk 0:00:18.9]} 35... Kh7 {[%clk 0:00:08.3]} 36.
b3 {[%clk 0:00:20]} 36... Qb4 {[%clk 0:00:07.2]} 37. Rc7 {[%clk 0:00:19.8]}
37... Kg8 {[%clk 0:00:05.3]} 38. Qf4 {[%clk 0:00:16.9]} 38... Qa3+ {[%clk
0:00:04.7]} 39. Kb1 {[%clk 0:00:18]} 39... Qf8 {[%clk 0:00:05.7]} 40. Kb2 {[%clk
0:00:18]} 40... Rc8 {[%clk 0:00:07]} 41. Rxc8 {[%clk 0:00:18.8]} 41... Qxc8
{[%clk 0:00:08.9]} 42. Rf2 {[%clk 0:00:20.1]} 42... Kh7 {[%clk 0:00:09.7]} 43.
Rd2 {[%clk 0:00:20.8]} 43... Qc5 {[%clk 0:00:10.9]} 44. c4 {[%clk 0:00:20.8]}
44... b5 {[%clk 0:00:12.3]} 45. Qd4 {[%clk 0:00:21]} 45... Qc6 {[%clk 0:00:12]}
46. c5 {[%clk 0:00:22.6]} 46... a5 {[%clk 0:00:13.1]} 47. Re2 {[%clk 0:00:22.5]}
47... b4 {[%clk 0:00:14.1]} 48. a3 {[%clk 0:00:21.6]} 48... Qb7 {[%clk 0:00:12]}
49. a4 {[%clk 0:00:21.4]} 49... Qa6 {[%clk 0:00:12.5]} 50. Rf2 {[%clk
0:00:21.7]} 50... Qc6 {[%clk 0:00:13]} 51. h4 {[%clk 0:00:22.6]} 51... h5 {[%clk
0:00:13.9]} 52. Qe3 {[%clk 0:00:20.5]} 52... Kg8 {[%clk 0:00:13.1]} 53. Rd2
{[%clk 0:00:21.5]} 53... Kh7 {[%clk 0:00:14.6]} 54. Rf2 {[%clk 0:00:15.1]} 54...
Qd5 {[%clk 0:00:14.9]} 55. Rd2 {[%clk 0:00:13.5]} 55... Qc6 {[%clk 0:00:16.4]}
56. Qf2 {[%clk 0:00:11.5]} 56... Qe4 {[%clk 0:00:17.6]} 57. Rd1 {[%clk
0:00:07.6]} 57... Qxe5+ {[%clk 0:00:18.9]} 58. Ka2 {[%clk 0:00:08.2]} 58... Qc3
{[%clk 0:00:18.6]} 59. Qb2 {[%clk 0:00:06.5]} 59... Qxc5 {[%clk 0:00:18.3]} 60.
Rd8 {[%clk 0:00:08.2]} 60... e5 {[%clk 0:00:19.9]} 61. Re8 {[%clk 0:00:07.8]}
61... f6 {[%clk 0:00:21.1]} 62. Rd8 {[%clk 0:00:09.2]} 62... Bf7 {[%clk
0:00:18.9]} 63. Rd7 {[%clk 0:00:09.6]} 63... Kg8 {[%clk 0:00:20.3]} 64. Rd8+
{[%clk 0:00:09.9]} 64... Kg7 {[%clk 0:00:21.1]} 65. Rd3 {[%clk 0:00:10.9]} 65...
e4 {[%clk 0:00:22]} 66. Rd7 {[%clk 0:00:10.2]} 66... e3 {[%clk 0:00:22.5]} 67.
Rd3 {[%clk 0:00:10.2]} 67... Kg6 {[%clk 0:00:21.2]} 68. Qe2 {[%clk 0:00:09.6]}
68... Kg7 {[%clk 0:00:22.4]} 69. Rxe3 {[%clk 0:00:09.9]} 69... Qd4 {[%clk
0:00:22.7]} 70. Rg3+ {[%clk 0:00:11]} 70... Kf8 {[%clk 0:00:23.7]} 71. Rd3
{[%clk 0:00:12.2]} 71... Qxh4 {[%clk 0:00:23.7]} 72. Qd2 {[%clk 0:00:13.1]}
72... Kg7 {[%clk 0:00:24.6]} 73. Rd7 {[%clk 0:00:13.4]} 73... Qe4 {[%clk
0:00:25.1]} 74. Kb2 {[%clk 0:00:13.6]} 74... Qe6 {[%clk 0:00:26.1]} 75. Rd3
{[%clk 0:00:14.3]} 75... Qe5+ {[%clk 0:00:27.5]} 76. Rd4 {[%clk 0:00:15.3]}
76... Qe6 {[%clk 0:00:27.9]} 77. Qd3 {[%clk 0:00:16.7]} 77... Qe5 {[%clk
0:00:28.2]} 78. Kc1 {[%clk 0:00:15]} 78... Qg5+ {[%clk 0:00:29.3]} 79. Qd2
{[%clk 0:00:15.6]} 79... Qf5 {[%clk 0:00:28.8]} 80. Kb2 {[%clk 0:00:16.5]} 80...
Qe5 {[%clk 0:00:29.8]} 81. Ka2 {[%clk 0:00:17]} 81... Qe8 {[%clk 0:00:30.5]} 82.
Qb2 {[%clk 0:00:18.6]} 82... Qxa4+ {[%clk 0:00:31.5]} 83. Kb1 {[%clk 0:00:20.5]}
83... Bg6+ {[%clk 0:00:31.2]} 84. Kc1 {[%clk 0:00:21.1]} 84... Qc6+ {[%clk
0:00:32.6]} 85. Rc4 {[%clk 0:00:21.3]} 85... Qd6 {[%clk 0:00:30.9]} 86. Qd2
{[%clk 0:00:20.5]} 86... Qe5 {[%clk 0:00:31.3]} 87. Rd4 {[%clk 0:00:19]} 87...
Bf7 {[%clk 0:00:32.1]} 88. Kb2 {[%clk 0:00:15.5]} 88... Qe6 {[%clk 0:00:33.4]}
89. Rd3 {[%clk 0:00:16]} 89... Qe5+ {[%clk 0:00:31.9]} 90. Kc2 {[%clk
0:00:13.3]} 90... Bg6 {[%clk 0:00:29.2]} 91. Kd1 {[%clk 0:00:11.1]} 91... Bxd3
{[%clk 0:00:30.2]} 92. Qxd3 {[%clk 0:00:13]} 92... Qe6 {[%clk 0:00:31.2]} 93.
Qg3+ {[%clk 0:00:12.2]} 93... Qg4+ {[%clk 0:00:32.1]} 0-1

[Event "*** Titled Tuesday 3|2 Blitz"]
[Site "Chess.com"]
[Date "2016.09.06"]
[Round "6"]
[White "FairChess_on_YouTube"]
[Black "Tash_Boy"]
[Result "1-0"]
[WhiteElo "2693"]
[BlackElo "2416"]
[TimeControl "180+2"]
[EndTime "12:09:55 PDT"]
[Termination "FairChess_on_YouTube won by resignation"]

1. e4 {[%clk 0:03:01.9]} 1... c5 {[%clk 0:03:01]} 2. Nf3 {[%clk 0:03:01.1]} 2...
d6 {[%clk 0:03:02.1]} 3. d4 {[%clk 0:03:02]} 3... cxd4 {[%clk 0:03:03]} 4. Nxd4
{[%clk 0:03:03.9]} 4... Nf6 {[%clk 0:03:03.1]} 5. Nc3 {[%clk 0:03:05.1]} 5... e6
{[%clk 0:03:04.7]} 6. f4 {[%clk 0:03:00.3]} 6... Nc6 {[%clk 0:03:01.9]} 7. Be3
{[%clk 0:03:00.9]} 7... Be7 {[%clk 0:03:03]} 8. Be2 {[%clk 0:02:56.6]} 8... O-O
{[%clk 0:03:03.1]} 9. Qd2 {[%clk 0:02:57.8]} 9... Bd7 {[%clk 0:02:55.1]} 10.
O-O-O {[%clk 0:02:56.5]} 10... e5 {[%clk 0:02:55.5]} 11. Nf5 {[%clk 0:02:55.2]}
11... Bxf5 {[%clk 0:02:52.8]} 12. exf5 {[%clk 0:02:57.1]} 12... exf4 {[%clk
0:02:42.6]} 13. Bxf4 {[%clk 0:02:54.4]} 13... Ne5 {[%clk 0:02:43.9]} 14. g4
{[%clk 0:02:54.3]} 14... Nexg4 {[%clk 0:02:36.7]} 15. Bxg4 {[%clk 0:02:54.9]}
15... Nxg4 {[%clk 0:02:37.1]} 16. Rhg1 {[%clk 0:02:56.4]} 16... Ne5 {[%clk
0:02:32.2]} 17. Bxe5 {[%clk 0:02:55.9]} 17... dxe5 {[%clk 0:02:32.5]} 18. Qg2
{[%clk 0:02:57.3]} 1-0

[Event "*** Titled Tuesday 3|2 Blitz"]
[Site "Chess.com"]
[Date "2016.09.06"]
[Round "6"]
[White "wonderfultime"]
[Black "Dlugy"]
[Result "1-0"]
[WhiteElo "2670"]
[BlackElo "2563"]
[TimeControl "180+2"]
[EndTime "12:10:40 PDT"]
[Termination "wonderfultime won by resignation"]

1. d4 {[%clk 0:03:01.9]} 1... d5 {[%clk 0:03:00.4]} 2. c4 {[%clk 0:03:02.9]}
2... dxc4 {[%clk 0:03:02]} 3. e4 {[%clk 0:03:03.7]} 3... b5 {[%clk 0:03:03.1]}
4. a4 {[%clk 0:03:01.1]} 4... c6 {[%clk 0:03:04.4]} 5. Nf3 {[%clk 0:02:57]} 5...
a6 {[%clk 0:02:57.2]} 6. b3 {[%clk 0:02:53.7]} 6... cxb3 {[%clk 0:02:30.6]} 7.
axb5 {[%clk 0:02:51.9]} 7... cxb5 {[%clk 0:02:31.7]} 8. Bxb5+ {[%clk 0:02:51.9]}
8... Bd7 {[%clk 0:02:33.4]} 9. Bxd7+ {[%clk 0:02:51.8]} 9... Nxd7 {[%clk
0:02:33.7]} 10. Qxb3 {[%clk 0:02:53.7]} 10... e6 {[%clk 0:02:34.4]} 11. O-O
{[%clk 0:02:54.3]} 11... Ngf6 {[%clk 0:02:35.2]} 12. Nc3 {[%clk 0:02:49.5]}
12... Be7 {[%clk 0:02:32.9]} 13. e5 {[%clk 0:02:49.2]} 13... Ng8 {[%clk
0:02:16.5]} 14. d5 {[%clk 0:02:49.3]} 14... Nc5 {[%clk 0:01:48.5]} 15. Qc4
{[%clk 0:02:40.1]} 15... exd5 {[%clk 0:01:49.5]} 16. Nxd5 {[%clk 0:02:40.4]}
16... Ne6 {[%clk 0:01:48.3]} 17. Rd1 {[%clk 0:02:36.8]} 17... Qc8 {[%clk
0:01:39.8]} 18. Qa4+ {[%clk 0:02:37.2]} 18... Kf8 {[%clk 0:01:37.4]} 19. Nb6
{[%clk 0:02:38]} 19... Qe8 {[%clk 0:01:35.5]} 20. Nd7+ {[%clk 0:02:38.6]} 1-0